[Event "ESTCC 65 2019"]
[Site "Mali Losinj"]
[Date "2019.09.18"]
[Round "1"]
[White "Huss, Andreas"]
[Black "Peltola, Leo"]
[Result "1-0"]
[ECO "D36"]
[WhiteElo "2261"]
[BlackElo "1966"]
[Annotator "NA"]
[PlyCount "109"]
[EventDate "2019.??.??"]
[EventCountry "CRO"]
[SourceTitle "playchess.com"]
[Source "ChessBase"]
[SourceQuality "1"]
[WhiteTeam "Switzerland"]
[BlackTeam "Finland"]
[WhiteTeamCountry "SUI"]
[BlackTeamCountry "FIN"]
[TimeControl "40/5400+30:1800+30"]

1. d4 Nf6 2. Nf3 d5 3. c4 e6 4. Nc3 Nbd7 5. cxd5 exd5 6. Bg5 c6 7. e3 Be7 8. Bd3 O-O 9. Qc2 Re8 10. O-O Nf8 11. h3 Be6 12. Ne5 N6d7 13. Bxe7 Qxe7 14. f4 f6 15. Nxd7 Qxd7 16. f5 Bf7 17. Rf3 Qd6 18. Raf1 Re7 19. Qf2 Rae8 20. Ne2 a6 21. Nf4 c5 22. Kh1 cxd4 23. exd4 Qb4 24. a3 Qa5 25. b4 Qb6 26. Rc1 Qd6 27. Qc2 Re1+ 28. Rxe1 Rxe1+ 29. Bf1 Qd7 30. Nd3 Re7 31. Nc5 Qd6 32. Qf2 Qd8 33. Re3 Qc7 34. Bd3 Qd6 35. Rxe7 Qxe7 36. Qe2 Qc7 37. Qe3 a5 38. bxa5 Qxa5 39. Bc2 b6 40. Ne6 Qa8 41. Nf4 Qc6 42. Bb3 Qd7 43. g4 Qd6 44. a4 g5 45. fxg6 hxg6 46. Qf3 Qb4 47. Nxd5 Qe1+ 48. Kg2 Nd7 49. Nf4 Qd2+ 50. Ne2 Bxb3 51. Qxb3+ Kg7 52. Kf2 Qg5 53. Qe6 Qh4+ 54. Kg2 Nf8 55. Qxb6 1-0

[Event "ESTCC 65 2019"]
[Site "Mali Losinj"]
[Date "2019.09.18"]
[Round "1"]
[White "Wahlbom, Magnus"]
[Black "Wademark, Helge"]
[Result "1/2-1/2"]
[ECO "C12"]
[WhiteElo "2255"]
[BlackElo "1994"]
[Annotator "NA"]
[PlyCount "63"]
[EventDate "2019.??.??"]
[EventCountry "CRO"]
[SourceTitle "playchess.com"]
[Source "ChessBase"]
[SourceQuality "1"]
[WhiteTeam "Sweden"]
[BlackTeam "Sweden"]
[WhiteTeamCountry "SWE"]
[BlackTeamCountry "SWE"]
[TimeControl "40/5400+30:1800+30"]

1. e4 e6 2. d4 d5 3. Nc3 Nf6 4. Bg5 Bb4 5. e5 h6 6. Bd2 Bxc3 7. bxc3 Ne4 8. Qg4 Kf8 9. Qf4 c5 10. Bd3 Nxd2 11. Qxd2 Nc6 12. Nf3 Qa5 13. h4 cxd4 14. cxd4 Qxd2+ 15. Kxd2 Bd7 16. Rab1 Na5 17. h5 Ke7 18. Nh4 b6 19. f4 Rac8 20. Rhf1 Nc4+ 21. Ke2 Na3 22. Rbc1 Rc3 23. f5 Rhc8 24. fxe6 Bxe6 25. Kd2 R3c7 26. Nf5+ Bxf5 27. Bxf5 Nc4+ 28. Ke2 Rb8 29. Rf3 b5 30. Rh1 Rb6 31. Rb1 a6 32. Rbf1 1/2-1/2

[Event "ESTCC 65 2019"]
[Site "Mali Losinj"]
[Date "2019.09.18"]
[Round "1"]
[White "Malmdin, Nils-Ake"]
[Black "Nordenstrom, Sven"]
[Result "1-0"]
[ECO "C47"]
[WhiteElo "2142"]
[BlackElo "1874"]
[Annotator "NA"]
[PlyCount "103"]
[EventDate "2019.??.??"]
[EventCountry "CRO"]
[SourceTitle "playchess.com"]
[Source "ChessBase"]
[SourceQuality "1"]
[WhiteTeam "Sweden"]
[BlackTeam "Sweden"]
[WhiteTeamCountry "SWE"]
[BlackTeamCountry "SWE"]
[TimeControl "40/5400+30:1800+30"]

1. e4 e5 2. Nf3 Nc6 3. Nc3 Nf6 4. a3 a6 5. Be2 d6 6. h3 Nd4 7. d3 Nxe2 8. Qxe2 Be7 9. d4 Nd7 10. Be3 c6 11. Rd1 Qc7 12. b4 b5 13. O-O Bb7 14. Nh2 exd4 15. Bxd4 Bf6 16. Ng4 Be5 17. f4 Bxd4+ 18. Rxd4 Rd8 19. Rfd1 Nb6 20. e5 d5 21. Ne4 Bc8 22. f5 h5 23. Nd6+ Kf8 24. Ne3 Rh6 25. Qf2 Qe7 26. Qf4 f6 27. Nxc8 Nxc8 28. e6 Qd6 29. Qf2 Qe5 30. c3 Ke7 31. c4 bxc4 32. Nxc4 Qc7 33. R4d3 Qa7 34. Ne3 Ke8 35. Qg3 Kf8 36. Kh1 Ne7 37. Qf4 g5 38. fxg6 Rxg6 39. Nf5 Qb8 40. Qf3 Qe5 41. Nh4 Rg7 42. Re3 Qg5 43. g3 Kg8 44. Rd4 Rf8 45. Rf4 Rh7 46. Qe2 d4 47. Rxd4 Nd5 48. Rf3 Re8 49. Kh2 Rhe7 50. Re4 Qc1 51. Rf1 Qxa3 52. Qxh5 1-0

[Event "ESTCC 65 2019"]
[Site "Mali Losinj"]
[Date "2019.09.18"]
[Round "1"]
[White "Becker, Norbert"]
[Black "Ahlstrom, Per"]
[Result "1-0"]
[ECO "A36"]
[WhiteElo "2131"]
[BlackElo "1838"]
[Annotator "NA"]
[PlyCount "99"]
[EventDate "2019.??.??"]
[EventCountry "CRO"]
[SourceTitle "playchess.com"]
[Source "ChessBase"]
[SourceQuality "1"]
[WhiteTeam "Germany"]
[BlackTeam "Sweden"]
[WhiteTeamCountry "GER"]
[BlackTeamCountry "SWE"]
[TimeControl "40/5400+30:1800+30"]

1. c4 Nf6 2. g3 g6 3. Bg2 Bg7 4. Nc3 d6 5. e4 O-O 6. Nge2 c5 7. O-O Nc6 8. d3 a6 9. a3 Rb8 10. Rb1 Bd7 11. b4 cxb4 12. axb4 b5 13. cxb5 axb5 14. d4 Qc7 15. Qd3 e5 16. d5 Nd4 17. Be3 Nxe2+ 18. Nxe2 Ng4 19. Rfc1 Qb7 20. Rc2 Nxe3 21. Qxe3 Rfc8 22. Ra2 Rc4 23. Ra7 Qc8 24. Rc1 Rxc1+ 25. Nxc1 Rb7 26. Nb3 Bh6 27. f4 Rxa7 28. Qxa7 exf4 29. e5 fxg3 30. hxg3 dxe5 31. Nc5 Be3+ 32. Kh2 Bf5 33. d6 Qf8 34. Bd5 Bd4 35. Kg2 Be6 36. Bxe6 fxe6 37. Qc7 Qf2+ 38. Kh3 Qf1+ 39. Kh4 Qf6+ 40. Kh3 Qf1+ 41. Kh4 Qh1+ 42. Kg5 Qh5+ 43. Kf6 Qf5+ 44. Ke7 Qf8+ 45. Kxe6 Qf5+ 46. Kd5 Qf3+ 47. Ne4 Qb3+ 48. Kc6 Qc4+ 49. Kb7 Qd5+ 50. Qc6 1-0

[Event "ESTCC 65 2019"]
[Site "Mali Losinj"]
[Date "2019.09.18"]
[Round "1"]
[White "Hohler, Peter"]
[Black "Virtanen, Esko"]
[Result "1-0"]
[ECO "D55"]
[WhiteElo "2047"]
[BlackElo "1771"]
[Annotator "NA"]
[PlyCount "83"]
[EventDate "2019.??.??"]
[EventCountry "CRO"]
[SourceTitle "playchess.com"]
[Source "ChessBase"]
[SourceQuality "1"]
[WhiteTeam "Switzerland"]
[BlackTeam "Finland"]
[WhiteTeamCountry "SUI"]
[BlackTeamCountry "FIN"]
[TimeControl "40/5400+30:1800+30"]

1. d4 d5 2. c4 e6 3. Nc3 Nf6 4. Bg5 Be7 5. e3 h6 6. Bxf6 Bxf6 7. Rc1 O-O 8. Nf3 c6 9. Bd3 Nd7 10. O-O dxc4 11. Bxc4 e5 12. Ne4 exd4 13. Nxf6+ Qxf6 14. Qxd4 Qxd4 15. Nxd4 Ne5 16. Bb3 Bd7 17. h3 Rac8 18. f4 Ng6 19. Rfd1 c5 20. Nf3 Bb5 21. a4 Be8 22. g4 b6 23. Kf2 Bc6 24. Rd6 Ne7 25. Ne5 Be8 26. Rcd1 Nc6 27. Ng6 Na5 28. Nxf8 Nxb3 29. Nd7 f6 30. g5 hxg5 31. fxg5 fxg5 32. Ne5 Bxa4 33. Rd8+ Rxd8 34. Rxd8+ Kh7 35. Kg3 Nc1 36. Kg4 g6 37. Kxg5 Bc2 38. Kf6 Bb3 39. Rd7+ Kg8 40. Nxg6 Bf7 41. Rxf7 Nd3 42. Rg7# 1-0

[Event "ESTCC 65 2019"]
[Site "Mali Losinj"]
[Date "2019.09.18"]
[Round "1"]
[White "Grahn, Lars"]
[Black "Renman, Nils-Gustaf"]
[Result "1/2-1/2"]
[ECO "D10"]
[WhiteElo "2024"]
[BlackElo "2340"]
[Annotator "NA"]
[PlyCount "113"]
[EventDate "2019.??.??"]
[EventCountry "CRO"]
[SourceTitle "playchess.com"]
[Source "ChessBase"]
[SourceQuality "1"]
[WhiteTeam "Sweden"]
[BlackTeam "Sweden"]
[WhiteTeamCountry "SWE"]
[BlackTeamCountry "SWE"]
[TimeControl "40/5400+30:1800+30"]

1. d4 d5 2. c4 c6 3. cxd5 cxd5 4. Bf4 Nc6 5. e3 Nf6 6. Nc3 a6 7. Bd3 Bg4 8. Nge2 e6 9. Rc1 Be7 10. O-O O-O 11. f3 Bh5 12. Na4 Bg6 13. Nc5 Bxc5 14. Rxc5 Qb6 15. Bxg6 hxg6 16. Qc2 Rfe8 17. Re1 e5 18. Bxe5 Nd7 19. Rc3 Ndxe5 20. dxe5 Rxe5 21. Rb3 Qa7 22. Ng3 Rae8 23. Qd2 g5 24. Rd3 Qc5 25. Rc1 Qb6 26. Re1 d4 27. e4 g6 28. Kf1 Rb5 29. b3 Rd8 30. Ne2 Qc5 31. Rd1 Qe5 32. Kg1 Rc5 33. Nxd4 Nxd4 34. Rxd4 Rxd4 35. Qxd4 Qxd4+ 36. Rxd4 Rc1+ 37. Kf2 Rc2+ 38. Kg3 Rxa2 39. Rd8+ Kg7 40. Rb8 b5 41. b4 Kf6 42. Rb7 Ke6 43. Rc7 Ra4 44. Kg4 f6 45. Rc6+ Ke5 46. g3 Rxb4 47. Rxa6 Rb2 48. h3 Rg2 49. Rb6 f5+ 50. exf5 gxf5+ 51. Kxg5 Rxg3+ 52. Kh4 Rg8 53. Rxb5+ Kf4 54. Rb4+ Kxf3 55. Rb3+ Ke4 56. Rb4+ Ke3 57. Rb3+ 1/2-1/2

[Event "ESTCC 65 2019"]
[Site "Mali Losinj"]
[Date "2019.09.18"]
[Round "1"]
[White "Carlsten, Peter"]
[Black "Beilfuss, Wilfried"]
[Result "0-1"]
[ECO "B22"]
[WhiteElo "1986"]
[BlackElo "2192"]
[Annotator "NA"]
[PlyCount "112"]
[EventDate "2019.??.??"]
[EventCountry "CRO"]
[SourceTitle "playchess.com"]
[Source "ChessBase"]
[SourceQuality "1"]
[WhiteTeam "Sweden"]
[BlackTeam "Germany"]
[WhiteTeamCountry "SWE"]
[BlackTeamCountry "GER"]
[TimeControl "40/5400+30:1800+30"]

1. e4 c5 2. c3 d5 3. exd5 Qxd5 4. d4 e6 5. Nf3 Nf6 6. Be2 Nc6 7. O-O cxd4 8. cxd4 Be7 9. Nc3 Qd8 10. Bf4 O-O 11. Rc1 b6 12. Qd2 Bb7 13. a3 Rc8 14. b4 a5 15. b5 Nb8 16. a4 Bb4 17. Qd3 Nd5 18. Ng5 Nf6 19. Bf3 Bxf3 20. Nxf3 Nbd7 21. Rfd1 Qe7 22. Bg5 h6 23. Bh4 Bxc3 24. Rxc3 Qb4 25. Ra3 Nd5 26. Rb1 Qc4 27. Nd2 Qxd3 28. Rxd3 Rc2 29. Nb3 Rfc8 30. Ra1 Rb2 31. h3 Rcc2 32. Nc1 Nc3 33. Kh2 Nxa4 34. Rxa4 Rxc1 35. d5 Nc5 36. d6 Nd7 37. Bd8 Rxb5 38. Rad4 Rc2 39. Rd2 Rbb2 40. Rxc2 Rxc2 41. Kg3 f5 42. Bxb6 Nxb6 43. d7 Nxd7 44. Rxd7 Kf8 45. Ra7 Ra2 46. h4 a4 47. f4 a3 48. Kf3 Ra1 49. g3 g6 50. Kg2 Ke8 51. Kh2 Kd8 52. Kg2 Kc8 53. Kh2 Kb8 54. Ra6 Kb7 55. Rxe6 Rb1 56. Re3 a2 0-1

[Event "ESTCC 65 2019"]
[Site "Mali Losinj"]
[Date "2019.09.18"]
[Round "1"]
[White "Bernhardsson, Sten"]
[Black "Hammar, Bengt"]
[Result "0-1"]
[ECO "E93"]
[WhiteElo "1956"]
[BlackElo "2161"]
[Annotator "NA"]
[PlyCount "52"]
[EventDate "2019.??.??"]
[EventCountry "CRO"]
[SourceTitle "playchess.com"]
[Source "ChessBase"]
[SourceQuality "1"]
[WhiteTeam "Sweden"]
[BlackTeam "Sweden"]
[WhiteTeamCountry "SWE"]
[BlackTeamCountry "SWE"]
[TimeControl "40/5400+30:1800+30"]

1. d4 Nf6 2. Nf3 g6 3. c4 Bg7 4. Nc3 O-O 5. e4 d6 6. Be2 Nbd7 7. Be3 e5 8. d5 Nc5 9. Nd2 a5 10. b3 Ne8 11. a3 f5 12. f3 Bh6 13. Bxh6 Qh4+ 14. g3 Qxh6 15. Qc2 Nf6 16. Rb1 fxe4 17. fxe4 Ng4 18. Bxg4 Bxg4 19. Nd1 Bxd1 20. Kxd1 Rf2 21. Qc3 Qh5+ 22. Kc1 Qe2 23. Rd1 Rxh2 24. Nf1 Nxe4 25. Qd3 Qxd3 26. Rxd3 Rh1 0-1

[Event "ESTCC 65 2019"]
[Site "Mali Losinj"]
[Date "2019.09.18"]
[Round "1"]
[White "Karppinen, Martti"]
[Black "Vucenovic, Dragomir"]
[Result "0-1"]
[ECO "D02"]
[WhiteElo "1925"]
[BlackElo "2154"]
[Annotator "NA"]
[PlyCount "100"]
[EventDate "2019.??.??"]
[EventCountry "CRO"]
[SourceTitle "playchess.com"]
[Source "ChessBase"]
[SourceQuality "1"]
[WhiteTeam "Finland"]
[BlackTeam "Switzerland"]
[WhiteTeamCountry "FIN"]
[BlackTeamCountry "SUI"]
[TimeControl "40/5400+30:1800+30"]

1. g3 Nf6 2. Bg2 d5 3. d4 g6 4. Nf3 Bg7 5. O-O O-O 6. Bf4 Nbd7 7. Qc1 c6 8. c4 dxc4 9. Qxc4 Nb6 10. Qc1 Bf5 11. Bh6 Re8 12. Bxg7 Kxg7 13. Nc3 Qc8 14. Re1 Ne4 15. Nxe4 Bxe4 16. Qf4 Bxf3 17. Bxf3 Qb8 18. Qxb8 Raxb8 19. b3 Rbd8 20. Red1 Rd7 21. Rac1 Red8 22. e3 e6 23. Kf1 f5 24. h4 h6 25. Ke2 g5 26. g4 Nd5 27. gxf5 exf5 28. hxg5 hxg5 29. Rg1 Kg6 30. Rh1 Nf6 31. Rh2 g4 32. Bg2 f4 33. Ke1 Re7 34. Kd2 c5 35. Kd3 f3 36. Bf1 cxd4 37. exd4 Re4 38. Rc4 b5 39. Rb4 a5 40. Rxb5 Rexd4+ 41. Kc3 Rd2 42. Rb6 Kg5 43. Rb5+ Kf4 44. Rxa5 Ne4+ 45. Kb4 Rxf2 46. Rxf2 Nxf2 47. Ra7 Rd1 48. Rf7+ Ke3 49. Ba6 g3 50. Bb7 Ne4 0-1

[Event "ESTCC 65 2019"]
[Site "Mali Losinj"]
[Date "2019.09.18"]
[Round "1"]
[White "Thoele, Wolfgang"]
[Black "Palsson, Bertil"]
[Result "1-0"]
[ECO "B01"]
[WhiteElo "1865"]
[BlackElo "1784"]
[Annotator "NA"]
[PlyCount "125"]
[EventDate "2019.??.??"]
[EventCountry "CRO"]
[SourceTitle "playchess.com"]
[Source "ChessBase"]
[SourceQuality "1"]
[WhiteTeam "Germany"]
[BlackTeam "Sweden"]
[WhiteTeamCountry "GER"]
[BlackTeamCountry "SWE"]
[TimeControl "40/5400+30:1800+30"]

1. e4 d5 2. exd5 Nf6 3. d4 Bg4 4. Be2 Bxe2 5. Nxe2 Qxd5 6. O-O e6 7. Nbc3 Qh5 8. Bf4 Bd6 9. Bxd6 cxd6 10. Qd3 a6 11. Ng3 Qa5 12. Nge4 Qd8 13. Qg3 O-O 14. Qxd6 Nc6 15. Qxd8 Rfxd8 16. Nxf6+ gxf6 17. d5 exd5 18. Rad1 Nb4 19. a3 d4 20. axb4 dxc3 21. bxc3 Rac8 22. Rxd8+ Rxd8 23. f4 Rd2 24. Rc1 Rd7 25. Rb1 Rd2 26. Rb2 f5 27. h3 h5 28. Kh2 h4 29. Kg1 Kg7 30. b5 a5 31. b6 Kf6 32. Ra2 Rd1+ 33. Kf2 Rd2+ 34. Kf3 Rd6 35. Rb2 Rc6 36. Ke3 a4 37. Kd4 a3 38. Ra2 Rxb6 39. Rxa3 Ke6 40. Rb3 Rd6+ 41. Ke3 b6 42. Kf3 Kf6 43. g3 hxg3 44. Kxg3 Kg6 45. c4 Rc6 46. Rb5 f6 47. Rb4 Kh5 48. Ra4 Rc8 49. Kf3 Kg6 50. Ke3 Re8+ 51. Kd3 Rc8 52. Ra6 Rc6 53. Kd4 Rd6+ 54. Kc3 Re6 55. Kb4 Re4 56. Rxb6 Rxf4 57. Kb5 Rh4 58. c5 f4 59. c6 f3 60. Ra6 Re4 61. Ra3 Rf4 62. c7 f2 63. Ra1 1-0

[Event "ESTCC 65 2019"]
[Site "Mali Losinj"]
[Date "2019.09.18"]
[Round "1"]
[White "Dalling, Peter"]
[Black "Mueller, Gerhard"]
[Result "1/2-1/2"]
[ECO "B21"]
[WhiteElo "1824"]
[BlackElo "2104"]
[Annotator "NA"]
[PlyCount "51"]
[EventDate "2019.??.??"]
[EventCountry "CRO"]
[SourceTitle "playchess.com"]
[Source "ChessBase"]
[SourceQuality "1"]
[WhiteTeam "Sweden"]
[BlackTeam "Germany"]
[WhiteTeamCountry "SWE"]
[BlackTeamCountry "GER"]
[TimeControl "40/5400+30:1800+30"]

1. e4 c5 2. Nf3 d6 3. d4 cxd4 4. c3 Nf6 5. Bd3 dxc3 6. Nxc3 e5 7. h3 Be6 8. Qe2 Nbd7 9. Ng5 Be7 10. Nxe6 fxe6 11. Bc4 O-O 12. Bxe6+ Kh8 13. O-O a6 14. a4 Nc5 15. Bc4 Qd7 16. Rd1 Ne6 17. Be3 g6 18. Bh6 Rfd8 19. Nd5 Nxd5 20. Bxd5 Nd4 21. Qd3 Rac8 22. Rdc1 Bf8 23. Bg5 Be7 24. Bh6 Bf8 25. Bg5 Be7 26. Bh6 1/2-1/2

[Event "ESTCC 65 2019"]
[Site "Mali Losinj"]
[Date "2019.09.18"]
[Round "1"]
[White "Ristoja, Aulikki"]
[Black "Staechelin, Ruedi"]
[Result "0-1"]
[ECO "D00"]
[WhiteElo "1558"]
[BlackElo "2002"]
[Annotator "NA"]
[PlyCount "142"]
[EventDate "2019.??.??"]
[EventCountry "CRO"]
[SourceTitle "playchess.com"]
[Source "ChessBase"]
[SourceQuality "1"]
[WhiteTeam "Finland"]
[BlackTeam "Switzerland"]
[WhiteTeamCountry "FIN"]
[BlackTeamCountry "SUI"]
[TimeControl "40/5400+30:1800+30"]

1. d4 d5 2. Bf4 Nf6 3. e3 e6 4. Bd3 Bd6 5. Bg3 O-O 6. c3 c5 7. Nd2 b6 8. Ngf3 Ba6 9. Bxa6 Nxa6 10. Ne5 Nb8 11. Ndf3 Ne4 12. Nd2 Nxd2 13. Qxd2 Bxe5 14. dxe5 Nc6 15. f4 f5 16. Rd1 Qe8 17. O-O Qh5 18. Rfe1 h6 19. Qe2 Qxe2 20. Rxe2 g5 21. h4 g4 22. Bf2 h5 23. c4 Rfd8 24. cxd5 Rxd5 25. Rxd5 exd5 26. Rd2 Rd8 27. a3 Kf7 28. Kf1 Ke6 29. Ke2 Rd7 30. Kd1 Ke7 31. Kc2 Nd8 32. Kc3 Ne6 33. g3 Kd8 34. b3 Kc7 35. a4 Kc6 36. Kc2 a6 37. Kc3 Ng7 38. Kc2 b5 39. a5 b4 40. Kb1 Ne6 41. Rc2 Kb5 42. Ra2 Rd8 43. Rd2 Kxa5 44. e4 dxe4 45. Rxd8 Nxd8 46. Bxc5 Ne6 47. Be3 Kb5 48. Kc2 a5 49. Kb2 Nc7 50. Kc2 a4 51. bxa4+ Kxa4 52. Kb2 Nd5 53. Bd2 b3 54. Be1 e3 55. e6 Ne7 56. Bc3 e2 57. Bd2 Kb5 58. Kxb3 Kc5 59. Kc3 Kd5 60. Kd3 Kxe6 61. Kxe2 Kd5 62. Ke3 Kc4 63. Kf2 Kd3 64. Bb4 Nd5 65. Bd6 Nc3 66. Be5 Ne4+ 67. Kg2 Ke2 68. Bd4 Nd2 69. Be5 Nf1 70. Bd4 Ne3+ 71. Kh2 Kf3 0-1

[Event "ESTCC 65 2019"]
[Site "Mali Losinj"]
[Date "2019.09.18"]
[Round "1.1"]
[White "Sveshnikov, Evgeny"]
[Black "Singer, Hans"]
[Result "1/2-1/2"]
[ECO "C02"]
[WhiteElo "2483"]
[BlackElo "2184"]
[Annotator "ChessBase"]
[PlyCount "66"]
[EventDate "2019.09.18"]
[EventType "team-tourn"]
[EventCountry "CRO"]
[SourceTitle "playchess.com"]
[Source "ChessBase"]
[SourceQuality "1"]
[WhiteTeam "Russia"]
[BlackTeam "Austria"]
[WhiteTeamCountry "RUS"]
[BlackTeamCountry "AUT"]
[TimeControl "40/5400+30:1800+30"]

1. e4 {[%emt 0:00:30]} c5 {[%emt 0:00:30]} 2. c3 {[%emt 0:00:30]} e6 {[%emt 0:00:30]} 3. d4 {[%emt 0:00:30]} d5 {[%emt 0:00:00]} 4. e5 {[%emt 0:00:30]} Nc6 {[%emt 0:01:00]} 5. Nf3 {[%emt 0:00:00]} Qb6 {[%emt 0:04:30]} 6. a3 {[%emt 0:00:00]} c4 {[%emt 0:00:30]} 7. Nbd2 {[%emt 0:00:30]} Na5 {[%emt 0:01:30]} 8. g3 {[%emt 0:00:30]} Bd7 {[%emt 0:01:30]} 9. Bh3 {[%emt 0:00:30]} Ne7 {[%emt 0:08:30]} 10. O-O {[%emt 0:00:00]} h6 {[%emt 0:01:30]} 11. Nh4 {[%emt 0:03:00]} g6 {[%emt 0:04:30]} 12. Ng2 {[%emt 0:04:30]} Bg7 {[%emt 0:04:30]} 13. Ne3 {[%emt 0:01:30]} h5 {[%emt 0:01:30]} 14. Rb1 {[%emt 0:00:30]} O-O-O {[%emt 0:10:30]} 15. b4 {[%emt 0:02:30]} cxb3 {[%emt 0:00:30]} 16. Nxb3 {[%emt 0:00:30]} Nxb3 {[%emt 0:00:30]} 17. Rxb3 {[%emt 0:00:30]} Qa6 {[%emt 0:06:30]} 18. Qf3 {[%emt 0:11:30]} Rhf8 {[%emt 0:02:30]} 19. Re1 {[%emt 0:02:30]} Bb5 {[%emt 0:05:30]} 20. Ng2 {[%emt 0:18:30]} Rd7 {[%emt 0:05:30]} 21. Bg5 {[%emt 0:00:30]} Bc4 {[%emt 0:03:30]} 22. Rbb1 {[%emt 0:01:30]} Nc6 {[%emt 0:01:30]} 23. Ne3 {[%emt 0:03:30]} Bd3 {[%emt 0:01:30]} 24. Rbc1 {[%emt 0:07:30]} Kb8 {[%emt 0:03:30]} 25. Qd1 {[%emt 0:05:30]} Rc8 {[%emt 0:01:30]} 26. Ng2 {[%emt 0:00:30]} Na5 {[%emt 0:04:30]} 27. Nf4 {[%emt 0:00:00]} Bc4 {[%emt 0:00:30]} 28. Rb1 {[%emt 0:00:00]} Bf8 {[%emt 0:00:30]} 29. a4 {[%emt 0:00:30]} Qc6 {[%emt 0:01:30]} 30. Re3 {[%emt 0:00:30]} Rdc7 {[%emt 0:01:30]} 31. g4 {[%emt 0:01:30]} hxg4 {[%emt 0:00:30]} 32. Bxg4 {[%emt 0:00:30]} Ba6 {[%emt 0:00:30]} 33. Rh3 {[%emt 0:01:30]} Ba3 {[%emt 0:03:51]} 1/2-1/2

[Event "ESTCC 65 2019"]
[Site "Mali Losinj"]
[Date "2019.09.18"]
[Round "1.2"]
[White "Woeber, Friedrich"]
[Black "Kalegin, Evgenij"]
[Result "0-1"]
[ECO "A45"]
[WhiteElo "2126"]
[BlackElo "2435"]
[Annotator "NA"]
[PlyCount "122"]
[EventDate "2019.09.18"]
[EventType "team-tourn"]
[EventCountry "CRO"]
[SourceTitle "playchess.com"]
[Source "ChessBase"]
[SourceQuality "1"]
[WhiteTeam "Austria"]
[BlackTeam "Russia"]
[WhiteTeamCountry "AUT"]
[BlackTeamCountry "RUS"]
[TimeControl "40/5400+30:1800+30"]

1. d4 {[%emt 0:00:30]} Nf6 {[%emt 0:00:30]} 2. Bf4 {[%emt 0:00:30]} g6 {[%emt 0:00:00]} 3. Nc3 {[%emt 0:00:00]} c5 {[%emt 0:00:00]} 4. e3 {[%emt 0:02:00]} Bg7 {[%emt 0:00:30]} 5. Nf3 {[%emt 0:05:30]} O-O {[%emt 0:01:30]} 6. Qd2 {[%emt 0:01:30]} b6 {[%emt 0:04:30]} 7. d5 {[%emt 0:04:30]} d6 {[%emt 0:08:30]} 8. h3 {[%emt 0:03:30]} Na6 {[%emt 0:04:30]} 9. Bc4 {[%emt 0:02:30]} Nc7 {[%emt 0:00:30]} 10. e4 {[%emt 0:05:30]} b5 {[%emt 0:00:30]} 11. Nxb5 {[%emt 0:07:30]} Nxb5 {[%emt 0:00:30]} 12. Bxb5 {[%emt 0:00:00]} Nxe4 {[%emt 0:00:30]} 13. Qd3 {[%emt 0:03:00]} Qa5+ {[%emt 0:02:30]} 14. c3 {[%emt 0:04:30]} Bf5 {[%emt 0:06:30]} 15. Qc4 {[%emt 0:01:30]} Rab8 {[%emt 0:00:30]} 16. a4 {[%emt 0:05:30]} a6 {[%emt 0:01:30]} 17. Bxa6 {[%emt 0:03:30]} Rxb2 {[%emt 0:00:00]} 18. O-O {[%emt 0:00:30]} Nxc3 {[%emt 0:07:00]} 19. Bd2 {[%emt 0:03:30]} Rb4 {[%emt 0:02:30]} 20. Bxc3 {[%emt 0:00:30]} Bxc3 {[%emt 0:00:00]} 21. Qxc3 {[%emt 0:00:30]} Qxa6 {[%emt 0:00:00]} 22. Rfe1 {[%emt 0:01:30]} Qb7 {[%emt 0:19:30]} 23. Qd2 {[%emt 0:03:30]} Be4 {[%emt 0:01:30]} 24. Qg5 {[%emt 0:08:30]} Qxd5 {[%emt 0:09:30]} 25. Qxd5 {[%emt 0:00:30]} Bxd5 {[%emt 0:00:30]} 26. Rxe7 {[%emt 0:00:30]} Ra8 {[%emt 0:00:30]} 27. a5 {[%emt 0:01:30]} Ra6 {[%emt 0:00:30]} 28. Rd7 {[%emt 0:03:30]} c4 {[%emt 0:05:30]} 29. Rc7 {[%emt 0:03:30]} Bxf3 {[%emt 0:03:30]} 30. gxf3 {[%emt 0:00:00]} d5 {[%emt 0:00:30]} 31. Re1 {[%emt 0:01:00]} Ra4 {[%emt 0:00:30]} 32. Ree7 {[%emt 0:01:30]} Rf6 {[%emt 0:00:30]} 33. Rc5 {[%emt 0:03:30]} d4 {[%emt 0:00:30]} 34. Rd7 {[%emt 0:00:30]} c3 {[%emt 0:02:37]} 35. Kg2 {[%emt 0:01:56]} Rf5 {[%emt 0:00:45]} 36. Rc8+ {[%emt 0:01:18]} Kg7 {[%emt 0:00:05]} 37. a6 {[%emt 0:00:00]} Rg5+ {[%emt 0:07:41]} 38. Kf1 {[%emt 0:00:59]} Ra1+ {[%emt 0:01:23]} 39. Ke2 {[%emt 0:00:02]} Re5+ {[%emt 0:00:28]} 40. Kd3 {[%emt 0:00:42]} Rd1+ {[%emt 0:00:14]} 41. Kc2 {[%emt 0:30:23]} Rd2+ {[%emt 0:31:12]} 42. Kb3 {[%emt 0:00:08]} Rb2+ {[%emt 0:11:05]} 43. Kc4 {[%emt 0:00:30]} c2 {[%emt 0:00:00]} 44. Kd3 {[%emt 0:02:10]} Ra2 {[%emt 0:00:00]} 45. a7 {[%emt 0:05:16]} Rea5 {[%emt 0:00:00]} 46. Rxc2 {[%emt 0:04:20]} R5a3+ {[%emt 0:00:00]} 47. Kd2 {[%emt 0:00:21]} Rxa7 {[%emt 0:00:00]} 48. Rxa7 {[%emt 0:00:22]} Rxa7 {[%emt 0:00:00]} 49. Kd3 {[%emt 0:00:59]} Ra3+ {[%emt 0:00:00]} 50. Ke4 {[%emt 0:00:09]} f5+ {[%emt 0:00:00]} 51. Kf4 {[%emt 0:00:20]} Ra7 {[%emt 0:00:00]} 52. Rd2 {[%emt 0:02:02]} Rd7 {[%emt 0:00:00]} 53. Ke5 {[%emt 0:03:29]} d3 {[%emt 0:00:00]} 54. Kf4 {[%emt 0:00:18]} Kh6 {[%emt 0:00:00]} 55. h4 {[%emt 0:00:46]} Kh5 {[%emt 0:00:00]} 56. Kg3 {[%emt 0:00:37]} f4+ {[%emt 0:00:00]} 57. Kxf4 {[%emt 0:01:27]} Kxh4 {[%emt 0:00:00]} 58. Rd1 {[%emt 0:00:11]} Kh3 {[%emt 0:00:00]} 59. Rd2 {[%emt 0:02:19]} Kg2 {[%emt 0:00:00]} 60. Ke3 {[%emt 0:00:31]} h5 {[%emt 0:00:00]} 61. f4 {[%emt 0:00:43]} Re7+ {[%emt 0:00:00]} 0-1

[Event "ESTCC 65 2019"]
[Site "Mali Losinj"]
[Date "2019.09.18"]
[Round "1.3"]
[White "Zhelnin, Vladimir V"]
[Black "Titz, Heimo"]
[Result "1-0"]
[ECO "B47"]
[WhiteElo "2406"]
[BlackElo "1971"]
[Annotator "NA"]
[PlyCount "51"]
[EventDate "2019.09.18"]
[EventType "team-tourn"]
[EventCountry "CRO"]
[SourceTitle "playchess.com"]
[Source "ChessBase"]
[SourceQuality "1"]
[WhiteTeam "Russia"]
[BlackTeam "Austria"]
[WhiteTeamCountry "RUS"]
[BlackTeamCountry "AUT"]
[TimeControl "40/5400+30:1800+30"]

1. e4 {[%emt 0:00:30]} c5 {[%emt 0:00:30]} 2. Nf3 {[%emt 0:00:30]} e6 {[%emt 0:00:00]} 3. Nc3 {[%emt 0:00:30]} Nc6 {[%emt 0:01:00]} 4. d4 {[%emt 0:02:30]} cxd4 {[%emt 0:00:30]} 5. Nxd4 {[%emt 0:00:30]} Qc7 {[%emt 0:00:30]} 6. Be2 {[%emt 0:03:30]} Nf6 {[%emt 0:00:30]} 7. O-O {[%emt 0:10:30]} a6 {[%emt 0:01:30]} 8. Kh1 {[%emt 0:00:30]} b5 {[%emt 0:06:30]} 9. Nxc6 {[%emt 0:11:30]} dxc6 {[%emt 0:00:30]} 10. Qd3 {[%emt 0:07:30]} Bb7 {[%emt 0:14:30]} 11. f4 {[%emt 0:02:30]} b4 {[%emt 0:13:30]} 12. e5 {[%emt 0:04:30]} bxc3 {[%emt 0:05:30]} 13. exf6 {[%emt 0:00:30]} gxf6 {[%emt 0:00:30]} 14. Qxc3 {[%emt 0:00:30]} Be7 {[%emt 0:00:30]} 15. Be3 {[%emt 0:06:30]} c5 {[%emt 0:01:30]} 16. Bf3 {[%emt 0:00:30]} Bxf3 {[%emt 0:02:30]} 17. Rxf3 {[%emt 0:00:30]} Rc8 {[%emt 0:04:30]} 18. f5 {[%emt 0:06:30]} Rg8 {[%emt 0:06:30]} 19. Qc4 {[%emt 0:02:30]} Qc6 {[%emt 0:00:30]} 20. Qh4 {[%emt 0:00:00]} Rg7 {[%emt 0:06:30]} 21. Qh6 {[%emt 0:05:00]} Bf8 {[%emt 0:03:30]} 22. Qxf6 {[%emt 0:01:30]} exf5 {[%emt 0:00:30]} 23. Qxf5 {[%emt 0:00:30]} Qe6 {[%emt 0:02:30]} 24. Re1 {[%emt 0:03:30]} Kd7 {[%emt 0:05:30]} 25. Bh6 {[%emt 0:02:30]} Qxf5 {[%emt 0:00:30]} 26. Rxf5 {[%emt 0:00:30]} 1-0